fUSD/lending_fUSD_20260529
["ID","MTS","AMOUNT","RATE_DAILY","PERIOD"]
[423246283,1779984647000,-14547.2,0.00025,2]
[423246286,1779984647000,-7966.39999945,0.00025,2]
[423246284,1779984647000,-8441.26244847,0.00025,2]
[423246285,1779984647000,-364265.0,0.00025,2]
[423246297,1779984936000,-150.0,0.00012196,2]
[423246299,1779984989000,-216.58337339,0.00012097,2]
[423246300,1779985042000,-300.0,0.00012195,2]
[423246303,1779985096000,-300.0,0.00012195,2]
[423246304,1779985149000,-500.0,0.000121,30]
[423246306,1779985170000,-500.0,0.000121,30]
[423246310,1779985189000,-29.76862689,0.000121,30]
[423246313,1779985243000,-300.0,0.00012194,2]
[423246314,1779985244000,205.0,9.8e-05,2]
[423246315,1779985296000,-216.58337338,0.00012094,2]
[423246324,1779985350000,10000.0,0.000107,2]
[423246325,1779985350000,5114.71602729,0.000107,2]
[423246322,1779985350000,10000.0,0.000107,2]
[423246323,1779985350000,10000.0,0.000107,2]
[423246321,1779985350000,10000.0,0.000107,2]
[423246320,1779985350000,8354.01,0.000107,2]
[423246319,1779985350000,-150.0,0.00011827,2]
[423246326,1779985365000,500.0,0.00010699,2]
[423246328,1779985365000,500.0,0.00010699,2]
[423246327,1779985365000,282.40999828,0.00010699,2]
[423246333,1779985366000,500.0,0.00010699,2]
[423246334,1779985366000,453.04074929,0.00010699,2]
[423246332,1779985366000,415.9047373,0.00010699,2]
[423246330,1779985366000,310.88639074,0.00010699,2]
[423246331,1779985366000,500.0,0.00010699,2]
[423246329,1779985366000,500.0,0.00010699,2]
[423246339,1779985370000,500.0,0.00010699,2]
[423246335,1779985370000,500.0,0.00010699,2]
[423246336,1779985370000,208.76466943,0.00010699,2]
[423246337,1779985370000,214.27742767,0.00010699,2]
[423246338,1779985370000,285.72257233,0.00010699,2]
[423246340,1779985370000,500.0,0.00010699,2]
[423246342,1779985370000,500.0,0.00010699,2]
[423246346,1779985370000,500.0,0.00010699,2]
[423246343,1779985370000,500.0,0.00010699,2]
[423246344,1779985370000,500.0,0.00010699,2]
[423246345,1779985370000,500.0,0.00010699,2]
[423246347,1779985370000,500.0,0.00010699,2]
[423246349,1779985370000,500.0,0.00010699,2]
[423246348,1779985370000,470.01019732,0.00010699,2]
[423246350,1779985370000,500.0,0.00010699,2]
[423246341,1779985370000,500.0,0.00010699,2]
[423246352,1779985371000,500.0,0.00010699,2]
[423246351,1779985371000,500.0,0.00010699,2]
[423246355,1779985371000,500.0,0.00010699,2]
[423246354,1779985371000,500.0,0.00010699,2]
[423246356,1779985371000,500.0,0.00010699,2]
[423246353,1779985371000,500.0,0.00010699,2]
[423246363,1779985467000,497.00101974,0.00010699,2]
[423246362,1779985467000,500.0,0.00010699,2]
[423246361,1779985467000,255.73276965,0.00010699,2]
[423246360,1779985467000,244.26723035,0.00010699,2]
[423246359,1779985467000,500.0,0.00010699,2]
[423246364,1779985478000,217.62047352,0.00010699,2]
[423246365,1779985488000,500.0,0.00010699,2]
[423246366,1779985488000,367.1285245,0.00010699,2]
[423246367,1779985491000,500.0,0.00027571,120]
[423246368,1779985508000,469.05146846,0.00010699,2]
[423246369,1779985521000,197.6869988,0.00010699,2]
[423246373,1779985634000,500.0,0.00027571,120]
[423246378,1779985647000,-130.45924593,0.000125,2]
[423246377,1779985647000,-215.50460005,0.00012362,2]
[423246376,1779985647000,-160.0,0.00012323,2]
[423246375,1779985647000,-197.12000001,0.00012196,2]
[423246374,1779985647000,-250.0,0.00012195,2]
[423246379,1779985658000,500.0,0.00027571,120]
[423246382,1779985741000,1000.0,0.0002757,120]
[423246385,1779985825000,500.0,0.00027571,120]
[423246469,1779985832000,-500.0,0.00014699,2]
[423246409,1779985832000,-193.0,0.00013617,2]
[423246414,1779985832000,-730.0,0.00013636,2]
[423246462,1779985832000,-1100.0,0.000146,5]
[423246415,1779985832000,-613.5,0.00013698,2]
[423246423,1779985832000,-600.0,0.0001375,2]
[423246424,1779985832000,-600.0,0.0001375,2]
[423246413,1779985832000,-491.13331611,0.00013635,2]
[423246416,1779985832000,-166.66,0.00013699,2]
[423246417,1779985832000,-200.0,0.00013699,2]
[423246418,1779985832000,-364.58635156,0.00013699,2]
[423246419,1779985832000,-150.0,0.00013749,2]
[423246420,1779985832000,-150.0,0.0001375,2]
[423246421,1779985832000,-600.0,0.0001375,2]
[423246425,1779985832000,-404.80519631,0.0001375,2]
[423246427,1779985832000,-300.0,0.0001375,2]
[423246428,1779985832000,-300.0,0.0001375,2]
[423246430,1779985832000,-250.0,0.0001375,2]
[423246408,1779985832000,-162.1,0.00013562,2]
[423246410,1779985832000,-500.0,0.00013635,2]
[423246411,1779985832000,-606.98996715,0.00013635,2]
[423246406,1779985832000,-150.0,0.00013488,2]
[423246391,1779985832000,-250.0,0.00012648,2]
[423246399,1779985832000,-150.0,0.00013488,2]
[423246390,1779985832000,-181.07582731,0.000125,2]
[423246393,1779985832000,-215.50460005,0.00012797,2]
[423246394,1779985832000,-3753.44890571,0.00013,5]
[423246395,1779985832000,-151.15,0.00013147,2]
[423246392,1779985832000,-1120.33,0.00012797,2]
[423246398,1779985832000,-250.0,0.00013413,2]
[423246429,1779985832000,-300.0,0.0001375,2]
[423246397,1779985832000,-459.24,0.00013288,2]
[423246400,1779985832000,-150.0,0.00013488,2]
[423246404,1779985832000,-150.0,0.00013488,2]
[423246401,1779985832000,-150.0,0.00013488,2]
[423246405,1779985832000,-150.0,0.00013488,2]
[423246412,1779985832000,-152.33433146,0.00013635,2]
[423246407,1779985832000,-150.0,0.00013488,2]
[423246403,1779985832000,-150.0,0.00013488,2]
[423246402,1779985832000,-150.0,0.00013488,2]
[423246396,1779985832000,-18935.37,0.00013164,2]
[423246426,1779985832000,-300.0,0.0001375,2]
[423246422,1779985832000,-600.0,0.0001375,2]
[423246433,1779985832000,-166.66,0.00013836,2]
[423246461,1779985832000,-311951.1517,0.00014599,2]
[423246452,1779985832000,-2500.0,0.00014499,2]
[423246453,1779985832000,-1243.01966137,0.000145,2]
[423246457,1779985832000,-500.0,0.00014568,2]
[423246455,1779985832000,-1243.01966134,0.00014557,2]
[423246456,1779985832000,-500.0,0.00014568,2]
[423246454,1779985832000,-900.0,0.000145,5]
[423246474,1779985832000,-500.0,0.00014699,2]
[423246458,1779985832000,-500.0,0.00014568,2]
[423246463,1779985832000,-1243.01966134,0.00014614,2]
[423246468,1779985832000,-500.0,0.00014699,2]
[423246464,1779985832000,-1243.01966134,0.00014671,2]
[423246470,1779985832000,-625.7470238,0.00014699,2]
[423246466,1779985832000,-500.0,0.00014699,2]
[423246465,1779985832000,-150.0,0.00014687,2]
[423246432,1779985832000,-150.0,0.00013787,2]
[423246472,1779985832000,-547.75839113,0.00014699,2]
[423246471,1779985832000,-500.0,0.00014699,2]
[423246473,1779985832000,-500.0,0.00014699,2]
[423246451,1779985832000,-150.0,0.00014487,2]
[423246467,1779985832000,-500.0,0.00014699,2]
[423246459,1779985832000,-500.0,0.00014568,2]
[423246450,1779985832000,-150.0,0.00014487,2]
[423246434,1779985832000,-157.0,0.00013881,2]
[423246435,1779985832000,-166.66,0.00013973,2]
[423246447,1779985832000,-166.66,0.00014384,2]
[423246437,1779985832000,-150.0,0.00013987,2]
[423246436,1779985832000,-150.0,0.00013987,2]
[423246441,1779985832000,-500.0,0.00014196,2]
[423246443,1779985832000,-166.66,0.00014247,2]
[423246438,1779985832000,-250.0,0.00014,2]
[423246431,1779985832000,-150.0,0.00013787,2]
[423246440,1779985832000,-166.66,0.0001411,2]
[423246444,1779985832000,-208.04,0.00014299,2]
[423246439,1779985832000,-150.0,0.00014087,2]
[423246445,1779985832000,-500.0,0.000143,5]
[423246446,1779985832000,-400.0,0.000143,5]
[423246449,1779985832000,-700.0,0.000144,5]
[423246448,1779985832000,-150.0,0.00014387,2]
[423246442,1779985832000,-200.0,0.000142,5]
[423246460,1779985832000,-500.0,0.00014568,2]
[423246494,1779985833000,-1268.51209275,0.00014757,2]
[423246495,1779985833000,-1268.51209268,0.00014773,2]
[423246493,1779985833000,-1243.01966134,0.00014729,2]
[423246496,1779985833000,-1243.01966134,0.00014786,2]
[423246498,1779985833000,-200.0,0.000148,5]
[423246497,1779985833000,-1268.51209268,0.00014789,2]
[423246501,1779985833000,-1268.51209268,0.00014836,2]
[423246502,1779985833000,-1243.01966134,0.00014843,2]
[423246503,1779985833000,-1268.51209268,0.00014852,2]
[423246509,1779985833000,-2918.477,0.000149,2]
[423246505,1779985833000,-1268.51209268,0.00014868,2]
[423246504,1779985833000,-255.0,0.00014863,2]
[423246506,1779985833000,-1268.51209268,0.00014884,2]
[423246492,1779985833000,-200.0,0.000147,5]
[423246500,1779985833000,-1268.51209268,0.00014821,2]
[423246499,1779985833000,-1268.51209268,0.00014805,2]
[423246481,1779985833000,-168.15877499,0.00014699,2]
[423246489,1779985833000,-613.5,0.00014699,2]
[423246511,1779985833000,-200.0,0.000149,5]
[423246475,1779985833000,-500.0,0.00014699,2]
[423246477,1779985833000,-503.8437914,0.00014699,2]
[423246482,1779985833000,-613.5,0.00014699,2]
[423246476,1779985833000,-500.0,0.00014699,2]
[423246479,1779985833000,-500.0,0.00014699,2]
[423246484,1779985833000,-613.5,0.00014699,2]
[423246485,1779985833000,-613.5,0.00014699,2]
[423246478,1779985833000,-500.0,0.00014699,2]
[423246483,1779985833000,-613.5,0.00014699,2]
[423246487,1779985833000,-613.5,0.00014699,2]
[423246480,1779985833000,-388.93769863,0.00014699,2]
[423246486,1779985833000,-613.5,0.00014699,2]
[423246488,1779985833000,-613.5,0.00014699,2]
[423246490,1779985833000,-613.5,0.00014699,2]
[423246491,1779985833000,-613.5,0.00014699,2]
[423246510,1779985833000,-7220.0784,0.000149,2]
[423246529,1779985833000,-203.05475875,0.00014986,2]
[423246508,1779985833000,-5000.0,0.000149,2]
[423246525,1779985833000,-150.0,0.00014986,2]
[423246531,1779985833000,-613.5,0.00014989,2]
[423246530,1779985833000,-172.86437132,0.00014986,2]
[423246535,1779985833000,-151.0,0.00014997,2]
[423246534,1779985833000,-752.98644068,0.0001499,2]
[423246537,1779985833000,-613.5,0.00014999,2]
[423246536,1779985833000,-613.5,0.00014999,2]
[423246538,1779985833000,-613.5,0.00014999,2]
[423246540,1779985833000,-500.0,0.00014999,2]
[423246542,1779985833000,-691639.62704156,0.00015,2]
[423246539,1779985833000,-613.5,0.00014999,2]
[423246541,1779985833000,-262.07936103,0.00014999,2]
[423246543,1779985833000,-106366.04303481,0.00015,2]
[423246546,1779985833000,-7450.93464651,0.00015,2]
[423246545,1779985833000,-141169.61753072,0.00015,2]
[423246544,1779985833000,-121069.32292327,0.00015,2]
[423246532,1779985833000,-752.98644068,0.0001499,2]
[423246507,1779985833000,-15984.5574,0.000149,2]
[423246533,1779985833000,-752.98644068,0.0001499,2]
[423246528,1779985833000,-267.01285831,0.00014986,2]
[423246516,1779985833000,-12218.23119451,0.000149,2]
[423246518,1779985833000,-1059.08125991,0.000149,2]
[423246517,1779985833000,-254.52951594,0.000149,2]
[423246512,1779985833000,-1268.51209268,0.000149,2]
[423246513,1779985833000,-1243.01966134,0.000149,2]
[423246515,1779985833000,-181.4518432,0.000149,2]
[423246523,1779985833000,-198.21028094,0.00014986,2]
[423246519,1779985833000,-1566.52603139,0.000149,2]
[423246520,1779985833000,-25000.0,0.000149,3]
[423246521,1779985833000,-169.0,0.00014959,2]
[423246522,1779985833000,-150.00000001,0.00014986,2]
[423246524,1779985833000,-150.0,0.00014986,2]
[423246526,1779985833000,-151.05651201,0.00014986,2]
[423246527,1779985833000,-150.0,0.00014986,2]
[423246514,1779985833000,-172.54731153,0.000149,2]
[423246547,1779985834000,-554.18570853,0.00015,2]
[423246548,1779985834000,-1513.47594859,0.00015,2]
[423246557,1779985838000,-345.32226898,0.000145,2]
[423246556,1779985838000,-2023.2261267,0.000145,2]
[423246558,1779985838000,-76.94403841,0.00015,2]
[423246559,1779985838000,-1682.20121288,0.00015,2]
[423246562,1779985838000,-1729.49718832,0.00015,30]
[423246563,1779985838000,-8091.36035297,0.00015,2]
[423246560,1779985838000,-9331428.71159699,0.00015,2]
[423246564,1779985838000,-41371.71992482,0.00015,2]
[423246561,1779985838000,-2078.68861048,0.00015,2]
[423246595,1779985841000,-2355.84869894,0.00015,2]
[423246591,1779985841000,-1002.58579974,0.00014544,2]
[423246592,1779985841000,-418.59089225,0.00014544,2]
[423246593,1779985841000,-937.94540261,0.00014544,2]
[423246597,1779985841000,-1844.09,0.00015,2]
[423246596,1779985841000,-2511.0,0.00015,2]
[423246594,1779985841000,-9.42630106,0.00014544,2]
[423246599,1779985841000,-1593.45,0.00015,2]
[423246600,1779985841000,-7623.33821467,0.00015,2]
[423246598,1779985841000,-1726.48056371,0.00015,2]
[423246613,1779985843000,-262.0,0.00015,2]
[423246614,1779985843000,-681.58,0.00015,2]
[423246615,1779985843000,-9580.97694113,0.00015,2]
[423246617,1779985843000,-29571.23945614,0.00015,2]
[423246618,1779985843000,-23094.30641104,0.00015,2]
[423246619,1779985843000,-365.04367022,0.00015,2]
[423246620,1779985843000,-104024.45874614,0.00015,2]
[423246616,1779985843000,-146133.4311332,0.00015,2]
[423246622,1779985844000,-6740.34099779,0.00015,2]
[423246621,1779985844000,-18292.52491156,0.00015,2]
[423246634,1779985846000,-462.23,0.00014589,2]
[423246640,1779985847000,-11707.34747901,0.00015,2]
[423246639,1779985847000,-4741.06,0.00015,2]
[423246638,1779985847000,-216.74,0.00013699,2]
[423246637,1779985847000,-38201.60857817,0.00015,2]
[423246636,1779985847000,-53575.4168899,0.00015,2]
[423246635,1779985847000,-1906.31839566,0.00014589,2]
[423246643,1779985867000,500.0,0.00027571,120]
[423246644,1779985979000,-150.0,0.00012125,2]
[423246646,1779986019000,151.82,7.099e-05,2]
[423246649,1779986019000,151.82,8.22e-05,2]
[423246648,1779986019000,151.82,7.847e-05,2]
[423246647,1779986019000,151.82,7.473e-05,2]
[423246650,1779986020000,151.82,8.594e-05,2]
[423246651,1779986020000,151.82,8.967e-05,2]
[423246653,1779986020000,151.82,9.715e-05,2]
[423246654,1779986020000,151.82,0.00010088,2]
[423246652,1779986020000,151.82,9.341e-05,2]
[423246656,1779986021000,151.82,0.00010836,2]
[423246655,1779986021000,151.82,0.00010462,2]
[423246659,1779986190000,-151.82,0.00011209,2]
[423246660,1779986243000,-151.82,0.00011583,2]
[423246661,1779986297000,-151.82,0.00011957,2]
[423246662,1779986350000,-454.59519923,0.00012278,2]
[423246664,1779986403000,-266.90409286,0.00012278,2]
[423246666,1779986703000,260.10349063,0.0001036,2]
[423246667,1779986733000,-396.82461065,0.0001116,2]
[423246668,1779986787000,-212.81194687,0.0001153,2]
[423246672,1779986840000,-222.7894624,0.000124,2]
[423246671,1779986840000,-151.82,0.0001233,2]
[423246670,1779986840000,-324.67468144,0.0001223,2]
[423246669,1779986840000,-150.0,0.0001196,2]
[423246673,1779986851000,-5.3276376,0.000124,2]
[423246674,1779986851000,-230.3401,0.0001264,2]
[423246677,1779986851000,-37.57336754,0.00012771,2]
[423246676,1779986851000,-500.0,0.00012763,2]
[423246675,1779986851000,-151.82,0.00012704,2]
[423246678,1779986941000,1000.0,0.0002757,120]
[423246713,1779987031000,-500.0,0.0001284,2]
[423246705,1779987031000,-500.0,0.0001284,2]
[423246712,1779987031000,-500.0,0.0001284,2]
[423246709,1779987031000,-500.0,0.0001284,2]
[423246711,1779987031000,-500.0,0.0001284,2]
[423246700,1779987031000,-500.0,0.0001284,2]
[423246706,1779987031000,-500.0,0.0001284,2]
[423246707,1779987031000,-500.0,0.0001284,2]
[423246708,1779987031000,-500.0,0.0001284,2]
[423246704,1779987031000,-500.0,0.0001284,2]
[423246702,1779987031000,-500.0,0.0001284,2]
[423246699,1779987031000,-420.0715676,0.0001284,2]
[423246701,1779987031000,-500.0,0.0001284,2]
[423246710,1779987031000,-500.0,0.0001284,2]
[423246697,1779987031000,-500.0,0.0001284,2]
[423246698,1779987031000,-500.0,0.0001284,2]
[423246694,1779987031000,-301.03297211,0.0001284,2]
[423246696,1779987031000,-500.0,0.0001284,2]
[423246692,1779987031000,-500.0,0.0001284,2]
[423246693,1779987031000,-304.44834255,0.0001284,2]
[423246703,1779987031000,-500.0,0.0001284,2]
[423246690,1779987031000,-1200.0,0.00012839,2]
[423246689,1779987031000,-614.19290441,0.00012827,2]
[423246687,1779987031000,-130.77663246,0.00012771,2]
[423246685,1779987031000,-241.18447941,0.0001186,2]
[423246688,1779987031000,-151.15,0.00012791,2]
[423246686,1779987031000,-245.56431378,0.00012741,2]
[423246684,1779987031000,-258.81552059,0.0001186,2]
[423246691,1779987031000,-1200.0,0.00012839,2]
[423246714,1779987031000,-500.0,0.0001284,2]
[423246715,1779987031000,-500.0,0.0001284,2]
[423246695,1779987031000,-500.0,0.0001284,2]
[423246727,1779987031000,-500.0,0.0001284,2]
[423246717,1779987031000,-500.0,0.0001284,2]
[423246749,1779987031000,-471.06,0.00012945,2]
[423246746,1779987031000,-327.17101743,0.00012915,2]
[423246743,1779987031000,-2048.39,0.00012842,2]
[423246745,1779987031000,-500.0,0.00012915,2]
[423246747,1779987031000,-500.0,0.00012915,2]
[423246748,1779987031000,-2000.0,0.00012916,2]
[423246744,1779987031000,-783.47,0.00012853,2]
[423246741,1779987031000,-500.0,0.0001284,2]
[423246738,1779987031000,-500.0,0.0001284,2]
[423246733,1779987031000,-500.0,0.0001284,2]
[423246730,1779987031000,-500.0,0.0001284,2]
[423246742,1779987031000,-500.0,0.0001284,2]
[423246736,1779987031000,-500.0,0.0001284,2]
[423246737,1779987031000,-500.0,0.0001284,2]
[423246740,1779987031000,-500.0,0.0001284,2]
[423246739,1779987031000,-500.0,0.0001284,2]
[423246720,1779987031000,-500.0,0.0001284,2]
[423246734,1779987031000,-500.0,0.0001284,2]
[423246728,1779987031000,-500.0,0.0001284,2]
[423246722,1779987031000,-500.0,0.0001284,2]
[423246721,1779987031000,-500.0,0.0001284,2]
[423246716,1779987031000,-500.0,0.0001284,2]
[423246718,1779987031000,-500.0,0.0001284,2]
[423246719,1779987031000,-500.0,0.0001284,2]
[423246726,1779987031000,-500.0,0.0001284,2]
[423246723,1779987031000,-500.0,0.0001284,2]
[423246729,1779987031000,-500.0,0.0001284,2]
[423246732,1779987031000,-500.0,0.0001284,2]
[423246731,1779987031000,-500.0,0.0001284,2]
[423246725,1779987031000,-500.0,0.0001284,2]
[423246780,1779987032000,-151.0,0.00014264,2]
[423246774,1779987032000,-166.66,0.0001411,2]
[423246768,1779987032000,-463.63660122,0.00013699,2]
[423246776,1779987032000,-1680.0,0.00014123,2]
[423246771,1779987032000,-166.66,0.00013973,2]
[423246773,1779987032000,-340.19586514,0.00014015,2]
[423246770,1779987032000,-166.66,0.00013836,2]
[423246781,1779987032000,-245.56431378,0.00014289,2]
[423246778,1779987032000,-1087.51658989,0.00014199,2]
[423246777,1779987032000,-151.82,0.00014199,2]
[423246772,1779987032000,-250.0,0.00014,2]
[423246775,1779987032000,-150.0,0.0001411,2]
[423246790,1779987032000,-2288.87250686,0.00014454,2]
[423246779,1779987032000,-166.66,0.00014247,2]
[423246792,1779987032000,-240.56351546,0.00014488,2]
[423246769,1779987032000,-151.82,0.00013825,2]
[423246750,1779987032000,-221.27,0.0001303,2]
[423246763,1779987032000,-200.0,0.00013699,2]
[423246755,1779987032000,-250.30732785,0.00013188,2]
[423246754,1779987032000,-197.47646254,0.00013169,2]
[423246751,1779987032000,-670.94,0.00013077,2]
[423246753,1779987032000,-209.03147293,0.00013127,2]
[423246752,1779987032000,-151.82,0.00013078,2]
[423246756,1779987032000,-300.0,0.00013197,2]
[423246758,1779987032000,-212.77,0.00013362,2]
[423246759,1779987032000,-400.40383536,0.00013399,2]
[423246761,1779987032000,-245.56431378,0.00013515,2]
[423246760,1779987032000,-151.82,0.00013451,2]
[423246757,1779987032000,-420.0,0.000132,3]
[423246765,1779987032000,-9568.13,0.00013699,2]
[423246767,1779987032000,-500.0,0.00013699,2]
[423246766,1779987032000,-489.38246545,0.00013699,2]
[423246762,1779987032000,-896.29398211,0.00013689,2]
[423246764,1779987032000,-166.66,0.00013699,2]
[423246784,1779987032000,-5000.0,0.00014389,2]
[423246804,1779987032000,-500.0,0.00014488,2]
[423246783,1779987032000,-47857.2825,0.00014389,2]
[423246811,1779987032000,-546.17890492,0.00014489,2]
[423246808,1779987032000,-17743.03359734,0.00014489,2]
[423246807,1779987032000,-28811.1253667,0.00014489,2]
[423246810,1779987032000,-856.08682692,0.00014489,2]
[423246812,1779987032000,-3827.9986334,0.00014489,2]
[423246813,1779987032000,-591.86802884,0.00014489,2]
[423246814,1779987032000,-636.65095903,0.00014489,2]
[423246815,1779987032000,-5018.5141203,0.00014489,2]
[423246816,1779987032000,-400.0,0.00014489,2]
[423246817,1779987032000,-3031.8631592,0.00014489,2]
[423246818,1779987032000,-577.15688134,0.00014489,2]
[423246819,1779987032000,-557.6907513,0.00014489,2]
[423246821,1779987032000,-487.38503545,0.00014489,2]
[423246820,1779987032000,-764.02862534,0.00014489,2]
[423246791,1779987032000,-924.51141262,0.00014455,2]
[423246806,1779987032000,-31272.34022731,0.00014489,2]
[423246798,1779987032000,-644.42,0.00014488,2]
[423246809,1779987032000,-717.79063966,0.00014489,2]
[423246799,1779987032000,-500.0,0.00014488,2]
[423246782,1779987032000,-166.66,0.00014384,2]
[423246786,1779987032000,-2288.87250687,0.00014398,2]
[423246787,1779987032000,-924.5114127,0.00014399,2]
[423246789,1779987032000,-708.73857322,0.00014399,2]
[423246788,1779987032000,-817.14343106,0.00014399,2]
[423246800,1779987032000,-500.0,0.00014488,2]
[423246794,1779987032000,-500.0,0.00014488,2]
[423246795,1779987032000,-500.0,0.00014488,2]
[423246785,1779987032000,-2500.0,0.00014389,2]
[423246793,1779987032000,-500.0,0.00014488,2]
[423246805,1779987032000,-284.04184663,0.00014488,2]
[423246797,1779987032000,-644.42,0.00014488,2]
[423246803,1779987032000,-500.0,0.00014488,2]
[423246802,1779987032000,-500.0,0.00014488,2]
[423246801,1779987032000,-567.76,0.00014488,2]
[423246796,1779987032000,-644.42,0.00014488,2]
[423246830,1779987037000,-999.8506,0.00014489,2]
[423246831,1779987037000,-1021.88178341,0.00014489,2]
[423246829,1779987037000,-762.15,0.00014489,2]
[423246827,1779987037000,-2670.10974202,0.00014489,2]
[423246828,1779987037000,-437.05694,0.00014489,2]
[423246833,1779987038000,-1208.05176702,0.00014489,2]
[423246832,1779987038000,-538082.15996825,0.00014489,2]
[423246836,1779987038000,-648.48708585,0.00014489,2]
[423246834,1779987038000,-2043.0,0.00014489,2]
[423246835,1779987038000,-1738.835448,0.00014489,2]
[423246869,1779987040000,-215.50460005,0.00014647,2]
[423246865,1779987040000,-500.0,0.00014598,2]
[423246862,1779987040000,-500.0,0.00014598,2]
[423246872,1779987040000,-924.51141262,0.00014677,2]
[423246868,1779987040000,-924.51141262,0.00014622,2]
[423246861,1779987040000,-500.0,0.00014598,2]
[423246866,1779987040000,-500.0,0.00014598,2]
[423246870,1779987040000,-817.14343104,0.0001465,2]
[423246878,1779987040000,-924.51141262,0.00014844,2]
[423246867,1779987040000,-2288.87250686,0.00014621,2]
[423246863,1779987040000,-500.0,0.00014598,2]
[423246875,1779987040000,-2288.87250686,0.00014788,2]
[423246880,1779987040000,-559.16210683,0.000149,2]
[423246874,1779987040000,-924.51141262,0.00014733,2]
[423246879,1779987040000,-7106.14351012,0.0001485,2]
[423246873,1779987040000,-2288.87250686,0.00014733,2]
[423246864,1779987040000,-500.0,0.00014598,2]
[423246871,1779987040000,-2288.87250686,0.00014677,2]
[423246858,1779987040000,-500.0,0.00014598,2]
[423246859,1779987040000,-500.0,0.00014598,2]
[423246844,1779987040000,-333.26194966,0.00014489,2]
[423246842,1779987040000,-884.13379783,0.00014489,2]
[423246843,1779987040000,-1680.69415695,0.00014489,2]
[423246845,1779987040000,-91950.66520396,0.00014489,2]
[423246848,1779987040000,-2288.87250686,0.0001451,2]
[423246847,1779987040000,-2000.0,0.00014499,2]
[423246850,1779987040000,-2000.0,0.0001453,2]
[423246860,1779987040000,-500.0,0.00014598,2]
[423246846,1779987040000,-6693.1284,0.00014499,2]
[423246851,1779987040000,-2288.87250686,0.00014565,2]
[423246853,1779987040000,-639.96506873,0.00014598,2]
[423246852,1779987040000,-924.51141262,0.00014566,2]
[423246854,1779987040000,-500.0,0.00014598,2]
[423246856,1779987040000,-645.86663214,0.00014598,2]
[423246855,1779987040000,-500.0,0.00014598,2]
[423246857,1779987040000,-500.0,0.00014598,2]
[423246849,1779987040000,-924.51141262,0.0001451,2]
[423246876,1779987040000,-924.51141262,0.00014789,2]
[423246881,1779987040000,-251.24370789,0.000149,2]
[423246877,1779987040000,-2288.87250686,0.00014844,2]
[423246907,1779987040000,-500.0,0.00014999,2]
[423246897,1779987040000,-500.0,0.00014999,2]
[423246904,1779987040000,-500.0,0.00014999,2]
[423246905,1779987040000,-500.0,0.00014999,2]
[423246909,1779987040000,-500.0,0.00014999,2]
[423246911,1779987040000,-500.0,0.00014999,2]
[423246914,1779987040000,-500.0,0.00014999,2]
[423246919,1779987040000,-500.0,0.00014999,2]
[423246910,1779987040000,-500.0,0.00014999,2]
[423246913,1779987040000,-500.0,0.00014999,2]
[423246908,1779987040000,-500.0,0.00014999,2]
[423246912,1779987040000,-500.0,0.00014999,2]
[423246915,1779987040000,-500.0,0.00014999,2]
[423246916,1779987040000,-500.0,0.00014999,2]
[423246917,1779987040000,-225.04484781,0.00014999,2]
[423246882,1779987040000,-924.51141262,0.000149,2]